bitfinex/quotes_SOLUSD_20250719
["timestamp","ask_amount","ask_price","bid_price","bid_amount"]
[1752934085084,0.67,177.19,177.14,0.71]
[1752934085262,0.67,177.19,177.15,3.59237271]
[1752934085460,40.0,177.19,177.15,30.27237271]
[1752934085678,43.59237271,177.2,177.15,30.27237271]
[1752934085964,44.26237271,177.2,177.15,30.27237271]
[1752934086373,5.64365934,177.19,177.16,0.68]
[1752934086575,5.64365934,177.19,177.16,4.27237271]
[1752934087380,44.38078397,177.26,177.18,3.59237271]
[1752934087381,3.59237271,177.23,177.18,3.59237271]
[1752934087706,44.24237271,177.23,177.18,4.27237271]
[1752934087990,49.88475831,177.23,177.18,4.27237271]
[1752934088392,5.6430224,177.21,177.18,4.27237271]
[1752934089394,5.6430224,177.21,177.19,0.68]
[1752934089893,5.6430224,177.21,177.18,4.27237271]
[1752934090187,3.59237271,177.23,177.19,0.68]
[1752934090391,4.26237271,177.23,177.18,29.59237271]
[1752934090596,9.90485631,177.23,177.18,30.27237271]
[1752934091775,9.90485631,177.23,177.19,0.68]
[1752934093890,6.3124836,177.23,177.19,4.27237271]
[1752934094093,9.90485631,177.23,177.19,4.27237271]
[1752934094292,9.90485631,177.23,177.19,0.68]
[1752934094479,3.59237271,177.22,177.18,29.59237271]
[1752934094792,3.59237271,177.22,177.18,30.27237271]
[1752934094995,4.26237271,177.22,177.18,30.27237271]
[1752934095474,5.6430224,177.21,177.18,30.27237271]
[1752934097207,5.64270398,177.22,177.18,30.27237271]
[1752934098206,5.64270398,177.22,177.19,0.68]
[1752934099193,9.23507669,177.22,177.18,29.59237271]
[1752934099395,0.67,177.21,177.18,26.0]
[1752934100387,4.26237271,177.21,177.18,26.0]
[1752934100875,3.59237271,177.19,177.18,26.0]
[1752934101080,4.26237271,177.19,177.18,26.0]
[1752934101301,9.90603205,177.19,177.18,26.0]
[1752934102311,9.23603205,177.19,177.18,26.0]
[1752934104517,5.64365934,177.19,177.18,26.0]
[1752934104691,3.59237271,177.19,177.18,26.0]
[1752934105013,4.26237271,177.19,177.18,26.0]
[1752934105382,4.26237271,177.19,177.15,4.27237271]
[1752934105615,3.59237271,177.17,177.14,7.13]
[1752934105815,4.26237271,177.16,177.14,0.03]
[1752934106914,5.64493367,177.15,177.14,0.03]
[1752934110811,5.6446565,177.16,177.14,0.7]
[1752934111116,5.64435966,177.17,177.14,0.7]
[1752934111416,5.64435966,177.17,177.15,0.67]
[1752934111905,5.64435966,177.17,177.14,0.03]
[1752934112104,5.64435966,177.17,177.14,0.7]
[1752934113829,14.108134,177.21,177.15,4.26237271]
[1752934113992,5.64334085,177.2,177.17,3.59237271]
[1752934114191,5.64334085,177.2,177.18,4.26237271]
[1752934115710,5.6430224,177.21,177.18,4.26237271]
[1752934116597,5.6430224,177.21,177.18,0.67]
[1752934118318,14.10575401,177.24,177.17,3.59237271]
[1752934118625,4.26237271,177.24,177.2,3.59237271]
[1752934118810,4.26237271,177.24,177.2,4.26237271]
[1752934119321,0.67,177.24,177.2,4.26237271]
[1752934119822,4.26237271,177.24,177.2,0.67]
[1752934120007,0.67,177.23,177.19,3.59237271]
[1752934120206,0.67,177.23,177.18,26.0]
[1752934120427,5.64270398,177.22,177.19,4.26237271]
[1752934120606,6.31270398,177.22,177.18,26.0]
[1752934120810,0.67,177.21,177.18,26.0]
[1752934121021,0.67,177.21,177.18,29.59237271]
[1752934121701,6.37313074,177.21,177.18,29.59237271]
[1752934121918,6.37313074,177.21,177.18,26.0]
[1752934122620,5.70313074,177.21,177.18,29.59237271]
[1752934122931,5.70313074,177.21,177.18,30.26237271]
[1752934124002,0.06,177.21,177.2,3.59237271]
[1752934124208,0.06,177.21,177.2,4.26237271]
[1752934125200,0.06,177.21,177.19,50.55237271]
[1752934125529,6.37313445,177.21,177.19,46.96]
[1752934128528,5.70313445,177.21,177.19,46.96]
[1752934128729,5.70313445,177.21,177.19,39.86]
[1752934129310,6.37313445,177.21,177.19,39.86]
[1752934129519,0.67,177.2,177.19,26.0]
[1752934130425,6.31334085,177.2,177.19,26.0]
[1752934134029,5.64334085,177.2,177.19,26.0]
[1752934135507,5.7030224,177.21,177.19,26.0]
[1752934135703,6.4030224,177.21,177.19,26.0]
[1752934137742,4.29237271,177.2,177.15,7.1]
[1752934137903,3.59237271,177.19,177.14,43.48237271]
[1752934138257,4.29237271,177.18,177.15,26.0]
[1752934138409,4.29237271,177.17,177.14,0.03]
[1752934138936,0.7,177.16,177.14,0.03]
[1752934139309,6.34493367,177.15,177.14,26.03]
[1752934140129,0.7,177.15,177.14,26.03]
[1752934140309,5.6446572,177.16,177.14,26.03]
[1752934140508,0.7,177.15,177.14,26.03]
[1752934140931,4.29237271,177.15,177.14,0.03]
[1752934141653,9.93730638,177.15,177.14,0.03]
[1752934142827,6.34493367,177.15,177.14,0.03]
[1752934143032,9.93730638,177.15,177.14,0.03]
[1752934150848,6.34493367,177.15,177.14,0.03]
[1752934151057,9.93730638,177.15,177.14,0.03]
[1752934152935,24.04964056,177.15,177.1,0.03]
[1752934153137,3.59237271,177.11,177.1,0.03]
[1752934153648,0.7,177.11,177.1,0.03]
[1752934153832,4.29237271,177.11,177.1,0.03]
[1752934154652,9.93858128,177.11,177.1,0.03]
[1752934155859,5.64620857,177.11,177.1,0.03]
[1752934156044,9.23794375,177.13,177.1,0.71]
[1752934156353,5.64557104,177.13,177.1,0.03]
[1752934156552,4.29237271,177.12,177.1,0.03]
[1752934156930,5.64620857,177.11,177.1,0.03]
[1752934158631,9.23835678,177.12,177.1,0.03]
[1752934158834,5.64598407,177.12,177.1,0.03]
[1752934159255,5.64559707,177.13,177.1,0.71]
[1752934160058,5.64559707,177.13,177.11,0.68]
[1752934160357,9.23762505,177.14,177.11,0.68]
[1752934160562,9.93762505,177.14,177.1,0.03]
[1752934160746,6.34525234,177.14,177.1,0.03]
[1752934160949,9.93762505,177.14,177.1,0.71]
[1752934161263,9.93762505,177.14,177.1,0.03]
[1752934163961,6.34525234,177.14,177.1,0.74]
[1752934164165,5.64525234,177.14,177.1,0.74]
[1752934164345,5.64525234,177.14,177.11,0.71]
[1752934164541,9.95762505,177.14,177.1,3.62237271]
[1752934164748,9.95762505,177.14,177.1,4.33237271]
[1752934165053,0.66,177.13,177.1,0.03]
[1752934165463,9.29762505,177.14,177.1,0.03]
[1752934165640,3.59237271,177.11,177.1,0.03]
[1752934166075,4.25237271,177.11,177.1,0.03]
[1752934166551,9.89858128,177.11,177.1,0.03]
[1752934167370,6.30620857,177.11,177.1,0.03]
[1752934170488,9.89858128,177.11,177.1,0.03]
[1752934175268,9.89858128,177.11,177.1,1e-08]
[1752934176158,16.78468397,177.1,177.0,0.71]
[1752934176473,0.66,177.09,176.99,3.59237271]
[1752934176669,3.59237271,177.05,177.01,26.0]
[1752934176875,4.25237271,177.04,177.01,16.0]
[1752934177455,5.64876009,177.03,177.01,16.0]
[1752934178072,5.64876009,177.03,176.99,4.30237271]
[1752934178389,9.90086622,177.04,177.0,0.71]
[1752934178869,0.66,177.03,176.99,3.59237271]
[1752934179187,9.24086622,177.04,177.0,0.71]
[1752934179364,9.90086622,177.04,177.0,0.71]
[1752934179790,0.66,177.03,176.99,3.59237271]
[1752934180086,0.66,177.03,176.99,4.30237271]
[1752934180486,9.24086622,177.04,177.0,0.71]
[1752934180997,9.90086622,177.04,177.0,0.71]
[1752934181497,3.59237271,177.05,177.0,3.59237271]
[1752934181799,3.59237271,177.05,177.01,4.30237271]
[1752934182295,0.66,177.05,177.01,4.30237271]
[1752934182681,5.64811191,177.06,177.02,0.71]
[1752934182875,9.90048462,177.06,177.01,3.59237271]
[1752934183199,0.66,177.05,177.01,4.30237271]
[1752934183395,4.25237271,177.04,177.0,3.59237271]
[1752934183688,6.30861812,177.04,177.0,3.59237271]
[1752934184079,6.30861812,177.04,177.0,4.30237271]
[1752934184274,0.66,177.03,176.98,41.1241]
[1752934184491,0.66,177.03,177.0,3.59237271]
[1752934184677,0.66,177.02,176.98,41.1241]
[1752934184863,0.66,177.02,176.98,34.0241]
[1752934184864,0.66,177.01,176.98,34.0241]
[1752934185069,3.59237271,176.99,176.94,3.59237271]
[1752934185295,3.59237271,176.98,176.94,3.59237271]
[1752934185501,4.25237271,176.98,176.94,3.59237271]
[1752934185681,4.25237271,176.98,176.96,26.0]
[1752934186007,0.66,176.98,176.96,26.0]
[1752934186709,9.24258943,176.99,176.96,26.0]
[1752934186906,4.25237271,177.0,176.96,26.71]
[1752934187117,9.2419818,177.01,176.96,30.30237271]
[1752934187408,4.25237271,177.0,176.96,26.0]
[1752934187590,0.66,176.99,176.96,26.0]
[1752934188417,4.25237271,176.99,176.96,26.0]
[1752934188597,0.66,176.98,176.96,26.0]
[1752934188798,3.59237271,176.99,176.96,26.0]
[1752934189007,0.66,176.97,176.96,26.0]
[1752934189207,5.64992646,177.0,176.96,26.0]
[1752934189406,4.25237271,176.99,176.96,26.0]
[1752934189606,0.66,176.98,176.96,26.0]
[1752934190314,5.65031621,176.99,176.96,26.0]
[1752934190496,5.64960554,177.01,176.97,4.30237271]
[1752934190691,5.64960554,177.01,176.96,26.0]
[1752934190692,4.25237271,177.0,176.96,26.0]
[1752934190898,3.59237271,177.0,176.96,26.0]
[1752934191195,0.66,176.99,176.96,26.0]
[1752934191413,0.66,176.99,176.96,29.59237271]
[1752934191611,6.31007851,176.99,176.96,29.59237271]
[1752934192228,5.65007851,176.99,176.96,29.59237271]
[1752934193106,5.64978554,177.0,176.96,30.28237271]
[1752934193309,6.32978554,177.0,176.96,30.28237271]
[1752934196817,6.32978554,177.0,176.97,3.59237271]
[1752934198539,0.68,177.0,176.97,3.59237271]
[1752934199531,0.68,177.0,176.96,26.0]
[1752934199701,0.68,177.0,176.97,3.59237271]
[1752934200042,0.68,177.0,176.98,3.59237271]
[1752934200203,0.68,177.02,176.99,3.59237271]
[1752934200402,6.32844103,177.04,177.0,3.59237271]
[1752934200630,5.64844103,177.04,176.99,0.69]
[1752934200941,3.59237271,177.0,176.96,26.0]
[1752934201236,3.59237271,176.98,176.96,26.0]
[1752934201552,1.512,176.96,176.89,2.9465698]
[1752934201704,3.59237271,176.9,176.88,0.03]
[1752934201899,3.59237271,176.89,176.88,0.03]
[1752934202099,3.59237271,176.89,176.75,33.8]
[1752934202100,4.27237271,176.89,176.75,36.7374818]
[1752934202331,3.59237271,176.83,176.78,3.59237271]
[1752934202528,3.59237271,176.81,176.73,0.69]
[1752934202726,3.59237271,176.79,176.73,0.69]
[1752934202926,3.59237271,176.76,176.69,0.69]
[1752934203102,3.59237271,176.73,176.67,47.959]
[1752934203297,4.27237271,176.72,176.66,4.28237271]
[1752934203502,3.59237271,176.71,176.66,30.28237271]
[1752934203698,4.27237271,176.71,176.66,30.28237271]
[1752934204008,4.27237271,176.71,176.68,30.0]
[1752934204218,0.68,176.76,176.7,3.59237271]
[1752934204424,0.68,176.76,176.71,3.59237271]
[1752934204425,5.65770862,176.75,176.71,3.59237271]
[1752934204635,6.33748581,176.76,176.72,3.59237271]
[1752934204844,4.27237271,176.75,176.7,3.59237271]
[1752934205004,0.68,176.75,176.7,3.59237271]
[1752934205325,3.59237271,176.75,176.7,0.69]
[1752934205527,3.59237271,176.71,176.67,4.28237271]
[1752934205825,3.59237271,176.71,176.67,0.69]
[1752934206033,3.59237271,176.71,176.67,26.69]
[1752934206324,3.59237271,176.69,176.64,40.08]
[1752934206534,3.59237271,176.68,176.64,44.36237271]
[1752934206827,3.59237271,176.7,176.65,4.28237271]
[1752934207024,3.59237271,176.69,176.64,40.08]
[1752934207342,5.65834889,176.73,176.66,3.59237271]
[1752934207525,9.2507216,176.73,176.67,26.69]
[1752934207731,3.59237271,176.72,176.68,3.59237271]
[1752934208238,3.59237271,176.73,176.68,4.28237271]
[1752934208535,9.25092262,176.73,176.68,0.69]
[1752934208741,3.59237271,176.71,176.67,26.0]
[1752934208953,4.27237271,176.72,176.67,26.0]
[1752934209247,0.68,176.72,176.67,26.0]
[1752934209541,3.59237271,176.7,176.67,26.0]
[1752934209717,3.59237271,176.72,176.67,26.69]
[1752934209928,3.59237271,176.72,176.68,26.69]
[1752934210341,4.27237271,176.74,176.69,4.28237271]
[1752934210567,3.59237271,176.74,176.7,0.69]
[1752934210732,3.59237271,176.77,176.72,29.59237271]
[1752934211066,4.27237271,176.79,176.74,3.59237271]
[1752934211228,4.27237271,176.79,176.73,0.69]
[1752934211757,3.59237271,176.79,176.74,3.59237271]
[1752934211953,9.24894658,176.79,176.74,3.59237271]
[1752934212161,9.24894658,176.79,176.74,4.28237271]
[1752934212469,3.59237271,176.82,176.77,3.59237271]
[1752934212627,5.65482922,176.84,176.79,3.59237271]
[1752934212628,9.24720193,176.84,176.79,3.59237271]
[1752934212827,5.65482922,176.84,176.79,0.69]
[1752934213031,0.68,176.83,176.77,29.59237271]
[1752934213232,0.68,176.83,176.77,26.0]
[1752934213428,5.65457618,176.85,176.78,0.69]
[1752934213741,9.24694889,176.85,176.8,3.59237271]
[1752934213955,9.92694889,176.85,176.8,3.59237271]
[1752934214157,5.65387523,176.87,176.83,3.59237271]
[1752934214456,0.06,176.88,176.86,3.59237271]
[1752934214646,0.06,176.88,176.87,3.59237271]
[1752934214853,0.06,176.88,176.87,29.59237271]
[1752934215363,0.06,176.88,176.87,26.0]
[1752934216129,0.06,176.88,176.84,40.72]
[1752934216336,3.59237271,176.86,176.83,26.0]
[1752934216632,4.27237271,176.86,176.83,26.0]
[1752934217258,0.06,176.88,176.84,0.69]
[1752934217459,3.65237271,176.88,176.84,0.69]
[1752934217650,3.65237271,176.88,176.83,29.59237271]
[1752934217840,0.68,176.87,176.83,26.0]
[1752934218169,5.65418975,176.86,176.83,26.0]
[1752934218367,5.65418975,176.86,176.83,29.59237271]
[1752934218532,5.65389421,176.87,176.84,0.69]
[1752934218728,5.65389421,176.87,176.83,29.59237271]
[1752934219146,5.65389421,176.87,176.84,3.59237271]
[1752934219344,5.65389421,176.87,176.84,4.28237271]
[1752934219963,5.71356735,176.88,176.84,4.28237271]
[1752934221652,0.68,176.87,176.83,29.59237271]
[1752934222563,5.65450947,176.85,176.83,26.0]
[1752934223358,5.65425554,176.86,176.83,29.59237271]
[1752934223741,5.65425554,176.86,176.84,3.59237271]
[1752934224062,5.65425554,176.86,176.83,29.59237271]
[1752934224537,5.65387007,176.87,176.83,29.59237271]
[1752934224736,6.32387007,176.87,176.83,29.59237271]
[1752934224954,4.26237271,176.86,176.8,40.72]
[1752934225146,5.65387007,176.87,176.8,44.31237271]
[1752934225147,4.26237271,176.85,176.8,44.31237271]
[1752934225356,4.26237271,176.85,176.8,40.72]
[1752934225566,0.67,176.84,176.8,44.31237271]
[1752934226080,4.26237271,176.86,176.8,44.96237271]
[1752934226763,5.65450947,176.85,176.81,4.24237271]
[1752934227589,9.91688218,176.85,176.8,44.31237271]
[1752934228080,3.59237271,176.83,176.78,3.59237271]
[1752934228254,0.67,176.82,176.78,3.59237271]
[1752934228854,5.65578869,176.81,176.78,3.59237271]
[1752934229380,5.65578869,176.81,176.77,70.19237271]
[1752934229676,3.59237271,176.79,176.74,4.24237271]
[1752934229864,4.26237271,176.8,176.76,26.0]
[1752934230459,9.2481614,176.81,176.76,29.59237271]
[1752934230777,9.2481614,176.81,176.76,30.24237271]
[1752934231480,0.67,176.84,176.79,3.59237271]
[1752934231678,9.91720193,176.84,176.79,4.24237271]
[1752934232471,3.59237271,176.82,176.77,26.65]
[1752934232673,0.67,176.81,176.77,26.0]
[1752934232864,5.65610859,176.8,176.77,26.0]
[1752934233574,5.65610859,176.8,176.76,26.0]
[1752934233575,0.67,176.79,176.76,26.0]
[1752934234191,19.79638008,176.8,176.72,0.65]
[1752934234368,3.59237271,176.78,176.73,3.59237271]
[1752934234685,4.26237271,176.78,176.73,3.59237271]
[1752934234860,5.6570685,176.77,176.73,4.24237271]
[1752934235485,5.6570685,176.77,176.74,3.59237271]
[1752934236266,5.6570685,176.77,176.73,0.65]
[1752934236469,9.24880124,176.79,176.74,4.24237271]
[1752934236798,5.6570685,176.77,176.74,3.59237271]
[1752934237004,6.3270685,176.77,176.73,3.62237271]
[1752934237201,0.67,176.76,176.73,0.03]
[1752934237515,0.67,176.76,176.73,29.62237271]
[1752934237720,5.6570685,176.77,176.73,29.62237271]
[1752934238122,5.6570685,176.77,176.74,3.59237271]
[1752934238821,5.65642853,176.79,176.75,4.24237271]
[1752934239617,5.65642853,176.79,176.76,3.59237271]
[1752934240800,0.67,176.82,176.74,26.0]
[1752934241020,6.32482922,176.84,176.8,3.59237271]
[1752934241238,5.65461134,176.85,176.83,3.59237271]
[1752934242023,5.65461134,176.85,176.82,3.59237271]
[1752934242338,5.65418975,176.86,176.82,3.59237271]
[1752934242909,0.67,176.85,176.82,3.59237271]
[1752934243119,0.67,176.85,176.81,3.59237271]
[1752934243841,0.67,176.85,176.82,3.59237271]
[1752934244035,4.26237271,176.84,176.8,26.0]
[1752934244359,6.32542061,176.83,176.8,26.0]
[1752934245243,0.67,176.82,176.78,3.59237271]
[1752934245448,9.24779332,176.83,176.78,3.59237271]
[1752934245633,0.67,176.81,176.78,3.59237271]
[1752934245829,0.67,176.81,176.77,39.1694]
[1752934246021,0.67,176.81,176.77,10.69237271]
[1752934246432,5.65610859,176.8,176.77,10.69237271]
[1752934246627,5.65610859,176.8,176.78,3.59237271]
[1752934247027,5.65546883,176.82,176.78,3.59237271]
[1752934247229,5.65546883,176.82,176.79,3.59237271]
[1752934247443,5.65546883,176.82,176.8,3.59237271]
[1752934247630,5.65546883,176.82,176.79,3.59237271]
[1752934248440,5.65514901,176.83,176.79,3.59237271]
[1752934248939,6.32514901,176.83,176.79,3.59237271]
[1752934250350,6.32514901,176.83,176.79,4.24237271]
[1752934250351,5.65514901,176.83,176.79,4.24237271]
[1752934250550,5.65514901,176.83,176.8,3.59237271]
[1752934250736,6.32514901,176.83,176.8,3.59237271]
[1752934250935,6.32514901,176.83,176.79,3.59237271]
[1752934251656,5.65514901,176.83,176.79,3.59237271]
[1752934251863,0.67,176.82,176.79,3.59237271]
[1752934252249,5.65578869,176.81,176.79,3.59237271]
[1752934252763,5.65578869,176.81,176.79,3.62237271]
[1752934254843,5.65556395,176.82,176.79,3.62237271]
[1752934255762,6.36556395,176.82,176.79,3.62237271]
[1752934257956,0.71,176.81,176.79,0.03]
[1752934258273,3.59237271,176.8,176.79,0.03]
[1752934258779,9.9584813,176.8,176.79,0.03]
[1752934260646,9.9584813,176.8,176.79,1e-08]
[1752934261398,26.74316527,176.8,176.79,1e-08]
[1752934263259,23.15079256,176.8,176.79,1e-08]
[1752934263459,26.74316527,176.8,176.79,1e-08]
[1752934265573,67.08316527,176.8,176.79,1e-08]
[1752934265763,50.2984813,176.8,176.79,1e-08]
[1752934266275,93.08316527,176.8,176.79,1e-08]
[1752934271290,32.36610859,176.8,176.79,1e-08]
[1752934271489,9.9584813,176.8,176.79,1e-08]
[1752934271796,50.2984813,176.8,176.79,1e-08]
[1752934274380,5.65610859,176.8,176.79,1e-08]
[1752934274580,43.89237271,176.81,176.79,1e-08]
[1752934274807,3.59237271,176.8,176.79,1e-08]
[1752934274993,4.36237271,176.8,176.79,1e-08]
[1752934276511,10.0184813,176.8,176.79,1e-08]
[1752934279799,6.42610859,176.8,176.79,1e-08]
[1752934279986,10.0184813,176.8,176.79,1e-08]
[1752934281401,50.3184813,176.8,176.79,1e-08]
[1752934282516,49.6084813,176.8,176.79,1e-08]
[1752934282926,40.34,176.8,176.79,0.66000001]
[1752934283426,0.06,176.8,176.79,4.25237272]
[1752934283809,0.06,176.8,176.79,10.84987272]
[1752934285434,0.06,176.8,176.79,11.41551557]
[1752934286236,0.06,176.8,176.79,10.84987272]
[1752934288028,0.06,176.8,176.79,1e-08]
[1752934289136,5.71610859,176.8,176.79,1e-08]
[1752934289843,5.71610859,176.8,176.79,0.66000001]
[1752934289844,0.06,176.8,176.79,0.66000001]
[1752934290012,0.06,176.8,176.79,4.25237272]
[1752934290725,0.06,176.8,176.79,0.66000001]
[1752934291138,0.06,176.8,176.79,1e-08]
[1752934296640,0.06,176.8,176.79,4.25237272]
[1752934302137,0.06,176.8,176.79,3.59237272]
[1752934303935,0.06,176.8,176.79,4.25237272]
[1752934306244,0.06,176.8,176.79,30.25237272]
[1752934307152,0.06,176.8,176.79,29.59237272]
[1752934307858,0.72,176.8,176.79,1e-08]
[1752934309048,6.37610859,176.8,176.79,1e-08]
[1752934310331,9.9684813,176.8,176.79,1e-08]
[1752934310530,6.37610859,176.8,176.79,1e-08]
[1752934310730,9.9684813,176.8,176.79,1e-08]
[1752934313345,6.37610859,176.8,176.79,1e-08]
[1752934313540,9.9684813,176.8,176.79,1e-08]
[1752934316959,26.75316527,176.8,176.79,1e-08]
[1752934317172,23.16079256,176.8,176.79,1e-08]
[1752934317371,26.75316527,176.8,176.79,1e-08]
[1752934317545,34.71136527,176.8,176.79,1e-08]
[1752934318154,80.72455245,176.8,176.71,0.03]
[1752934318359,3.59237271,176.72,176.71,0.03]
[1752934318863,0.65,176.72,176.71,0.03]
[1752934319055,3.59237271,176.73,176.71,0.03]
[1752934319675,4.24237271,176.73,176.71,0.03]
[1752934319978,5.65866908,176.72,176.71,0.03]
[1752934320550,9.90104179,176.72,176.71,0.03]
[1752934320893,6.30866908,176.72,176.71,0.03]
[1752934321180,5.65866908,176.72,176.71,0.03]
[1752934322775,6.30866908,176.72,176.71,0.03]
[1752934323853,9.90104179,176.72,176.71,0.03]
[1752934324057,5.65866908,176.72,176.71,0.03]
[1752934324258,9.90104179,176.72,176.71,0.03]
[1752934326257,24.04771449,176.72,176.67,0.03]
[1752934326557,3.59237271,176.68,176.67,0.03]
[1752934327219,4.24237271,176.68,176.67,0.03]
[1752934327402,0.65,176.71,176.67,4.30237271]
[1752934327605,5.65930956,176.7,176.67,4.30237271]
[1752934328114,5.65909038,176.71,176.67,4.30237271]
[1752934328434,5.65909038,176.71,176.68,4.27237271]
[1752934328749,5.6580346,176.74,176.7,3.59237271]
[1752934329040,5.65713851,176.77,176.73,3.59237271]
[1752934329187,0.65,176.78,176.75,3.59237271]
[1752934329188,5.65683305,176.78,176.75,3.59237271]
[1752934329389,5.65683305,176.78,176.75,4.27237271]
[1752934329623,5.65653153,176.79,176.76,3.59237271]
[1752934330202,5.71621505,176.8,176.77,0.68]
[1752934330539,0.06,176.8,176.78,4.27237271]
[1752934330949,0.06,176.8,176.79,3.59237271]
[1752934331244,0.06,176.8,176.78,3.59237271]
[1752934331429,6.36615215,176.8,176.76,3.59237271]
[1752934331732,6.36615215,176.8,176.77,3.59237271]
[1752934332047,5.71615215,176.8,176.77,3.59237271]
[1752934332232,0.06,176.8,176.77,4.27237271]
[1752934332451,0.06,176.8,176.78,4.27237271]
[1752934333307,0.06,176.8,176.78,3.59237271]
[1752934333628,0.06,176.8,176.78,4.27237271]
[1752934333943,0.06,176.8,176.79,4.27237271]
[1752934334235,0.06,176.8,176.79,30.27237271]
[1752934334595,0.06,176.8,176.79,29.59237271]
[1752934334817,0.06,176.8,176.79,26.0]
[1752934335012,0.06,176.8,176.79,29.59237271]
[1752934335322,0.06,176.8,176.79,26.0]
[1752934336202,0.06,176.8,176.74,16.78468397]
[1752934336203,7.8245,176.79,176.67,0.03]
[1752934336497,3.59237271,176.68,176.67,0.03]
[1752934336841,3.59237271,176.76,176.67,0.03]
[1752934336842,4.15820759,176.71,176.67,0.03]
[1752934337203,4.24237271,176.7,176.67,0.03]
[1752934337398,4.15820759,176.69,176.67,0.03]
[1752934337736,3.59237271,176.68,176.67,0.03]
[1752934338036,9.9023229,176.68,176.67,0.03]
[1752934338667,6.30995019,176.68,176.67,0.03]
[1752934338971,6.87578507,176.68,176.67,0.03]
[1752934339138,10.46815778,176.68,176.67,0.03]
[1752934340140,5.65939129,176.7,176.67,0.03]
[1752934340363,3.59237271,176.69,176.67,0.03]
[1752934340562,3.59237271,176.68,176.67,0.03]
[1752934340865,4.24237271,176.68,176.67,0.03]
[1752934341855,3.59237271,176.68,176.67,0.03]
[1752934342936,4.15820759,176.69,176.67,0.03]
[1752934343136,0.56583488,176.69,176.67,0.03]
[1752934344233,4.15820759,176.69,176.67,0.03]
[1752934344656,0.56583488,176.69,176.67,0.03]
[1752934345954,4.15820759,176.7,176.67,0.03]
[1752934346375,4.31237271,176.69,176.67,0.03]
[1752934347160,9.97207118,176.69,176.67,0.03]
[1752934347975,0.72,176.68,176.67,0.03]
[1752934348650,10.53815778,176.68,176.67,0.03]
[1752934351770,6.94578507,176.68,176.67,0.03]
[1752934351947,10.53815778,176.68,176.67,0.03]
[1752934353879,50.69815778,176.68,176.67,0.03]
[1752934354079,50.69815778,176.68,176.67,1e-08]
[1752934355352,47.10578507,176.68,176.67,1e-08]
[1752934355569,50.69815778,176.68,176.67,1e-08]
[1752934358879,47.10578507,176.68,176.67,1e-08]
[1752934359076,50.69815778,176.68,176.67,1e-08]
[1752934362479,6.94578507,176.68,176.67,1e-08]
[1752934362648,6.22578507,176.68,176.67,1e-08]
[1752934362854,10.53815778,176.68,176.67,1e-08]
[1752934363575,6.94578507,176.68,176.67,1e-08]
[1752934363775,10.53815778,176.68,176.67,1e-08]
[1752934364158,6.94578507,176.68,176.67,1e-08]
[1752934364357,6.22578507,176.68,176.67,1e-08]
[1752934364777,9.81815778,176.68,176.67,1e-08]
[1752934365573,6.22578507,176.68,176.67,1e-08]
[1752934365782,5.65995019,176.68,176.67,1e-08]
[1752934365985,9.2523229,176.68,176.67,1e-08]
[1752934366554,9.9723229,176.68,176.67,1e-08]
[1752934366784,6.37995019,176.68,176.67,1e-08]
[1752934367387,9.9723229,176.68,176.67,1e-08]
[1752934369481,9.2523229,176.68,176.67,1e-08]
[1752934369673,9.9723229,176.68,176.67,1e-08]
[1752934371564,50.2523229,176.68,176.67,1e-08]
[1752934372496,53.84469561,176.68,176.67,1e-08]
[1752934373167,50.2523229,176.68,176.67,1e-08]
[1752934379893,9.9723229,176.68,176.67,1e-08]
[1752934380372,50.2123229,176.68,176.67,1e-08]
[1752934380685,14.15993728,176.68,176.67,1e-08]
[1752934380889,54.43993728,176.68,176.67,1e-08]
[1752934382191,14.15993728,176.68,176.67,1e-08]
[1752934382391,54.41993728,176.68,176.67,1e-08]
[1752934386501,13.43993728,176.68,176.67,1e-08]
[1752934386793,53.65993728,176.68,176.67,1e-08]
[1752934386991,54.31993728,176.68,176.67,1e-08]